bitfinex/quotes_ETHUSD_20240711
["timestamp","ask_amount","ask_price","bid_price","bid_amount"]
[1720707443276,14.823934,3166.3,3166.2,9.42e-06]
[1720707443476,3.15963,3165.0,3164.7,0.0008217]
[1720707443675,3.15975,3164.8,3164.7,0.0008217]
[1720707443901,3.16036,3164.2,3163.1,0.1156387]
[1720707444172,3.15991,3164.7,3163.1,0.1156387]
[1720707444413,3.15991,3164.7,3163.1,0.06646067]
[1720707444414,3.16028,3164.3,3163.1,0.06646067]
[1720707444618,0.631938,3164.8,3163.1,0.06646067]
[1720707444619,3.16037,3164.2,3163.1,0.06646067]
[1720707444768,3.1607,3163.9,3163.1,0.06646067]
[1720707444970,0.631938,3164.8,3163.1,0.06646067]
[1720707445183,3.16034,3164.3,3163.1,0.06646067]
[1720707445388,3.16007,3164.5,3163.1,0.06646067]
[1720707445618,0.55,3164.4,3163.1,0.06646067]
[1720707445915,3.16059,3164.0,3163.1,0.06646067]
[1720707446066,0.55,3164.6,3163.1,0.06646067]
[1720707446272,3.70995,3164.6,3163.1,0.06646067]
[1720707446523,0.43913178,3164.5,3163.1,0.06646067]
[1720707446709,3.16122,3163.4,3163.1,0.06646067]
[1720707446921,3.16089,3163.7,3163.1,0.06646067]
[1720707447203,0.43913178,3164.5,3163.1,0.06646067]
[1720707447407,0.55,3164.4,3163.1,0.06646067]
[1720707447580,3.16054,3164.1,3163.1,0.06646067]
[1720707447786,3.15995,3164.6,3163.5,3.16104]
[1720707447996,3.15994,3164.7,3163.7,3.16083]
[1720707448311,3.15978,3164.8,3163.8,0.316083]
[1720707448475,3.15946,3165.1,3163.8,0.316083]
[1720707448677,3.15933,3165.3,3164.1,3.16045]
[1720707448877,3.15977,3164.8,3164.2,2.4609]
[1720707449410,3.15916,3165.4,3164.2,2.4609]
[1720707449632,6.49653,3166.1,3164.7,3.15983]
[1720707449633,3.15878,3165.8,3164.7,3.15983]
[1720707449775,3.15965,3165.0,3164.2,2.4609]
[1720707449975,0.316,3165.3,3164.3,3.19040409]
[1720707450177,0.316,3165.3,3164.7,3.15981]
[1720707450383,0.316,3165.3,3164.8,0.03003293]
[1720707450618,0.316,3165.3,3164.4,3.16014]
[1720707450926,0.316,3165.3,3164.2,2.4609]
[1720707450927,0.316,3165.3,3164.9,3.1896079]
[1720707451104,0.316,3165.3,3165.0,3.15947]
[1720707451306,0.316,3165.3,3165.0,0.02993674]
[1720707451640,0.316,3165.3,3164.7,3.15978]
[1720707451830,0.316,3165.3,3165.1,0.02993171]
[1720707451983,0.316,3165.3,3164.5,0.316014]
[1720707451984,0.316,3165.3,3164.5,6.31992]
[1720707452180,0.316,3165.3,3164.6,3.82184887]
[1720707452428,0.316,3165.3,3164.6,0.66194887]
[1720707452584,0.316,3165.3,3165.1,3.15942]
[1720707452784,0.316,3165.3,3165.0,3.15953]
[1720707452987,0.316,3165.3,3165.1,2.51393171]
[1720707453223,3.15935,3165.2,3165.1,0.02993171]
[1720707453449,3.15935,3165.2,3164.3,2.484]
[1720707453450,3.15959,3165.0,3164.3,2.484]
[1720707453722,3.475285,3165.2,3164.3,2.484]
[1720707453723,3.15949,3165.1,3164.3,2.484]
[1720707453927,3.15976,3164.8,3164.4,0.02989804]
[1720707454090,0.315935,3165.2,3164.4,0.02989804]
[1720707454288,3.47532,3165.3,3164.4,0.09310261]
[1720707454289,0.316,3165.3,3164.4,0.09310261]
[1720707454488,0.316,3165.3,3164.7,3.15985]
[1720707454692,0.316,3165.3,3164.4,3.18997804]
[1720707454913,0.316,3165.3,3164.3,2.484]
[1720707454914,0.316,3165.3,3164.8,0.02994188]
[1720707455222,0.316,3165.3,3165.1,3.15944]
[1720707455429,0.316,3165.8,3165.2,0.03002752]
[1720707455636,0.316,3165.6,3165.2,0.03002752]
[1720707455804,0.316,3165.6,3165.3,0.03002249]
[1720707456188,0.316,3165.6,3165.4,0.03001746]
[1720707456421,0.316,3165.6,3165.2,3.15935]
[1720707456622,0.316,3165.5,3165.4,6.3183]
[1720707456923,0.316,3165.5,3165.3,2.44512249]
[1720707457108,0.316,3165.5,3165.4,0.03001746]
[1720707457932,0.316,3165.5,3164.9,4.43957]
[1720707458237,0.316,3165.5,3163.6,12.12]
[1720707458238,3.022,3165.0,3163.1,2.48156067]
[1720707458446,2.3479,3164.9,3163.1,2.48156067]
[1720707458721,3.16095,3163.7,3163.1,0.06646067]
[1720707458941,3.16123,3163.4,3163.1,0.06646067]
[1720707459149,6.3227,3163.2,3163.1,0.06646067]
[1720707459293,3.16135,3163.2,3163.1,0.06646067]
[1720707459625,3.16107,3163.5,3163.1,0.06646067]
[1720707460188,3.16067,3163.9,3163.1,2.50676067]
[1720707460415,3.16016,3164.4,3163.2,0.25067607]
[1720707460595,3.16048,3164.1,3163.2,0.25067607]
[1720707460795,3.16023,3164.4,3163.2,3.41193607]
[1720707461032,3.16023,3164.4,3163.1,5.66676067]
[1720707461033,3.16087,3163.7,3163.1,2.50676067]
[1720707461417,3.16106,3163.5,3163.1,0.06646067]
[1720707461636,3.1604,3164.2,3163.1,0.06646067]
[1720707461792,3.16067,3163.9,3163.1,0.06646067]
[1720707461993,2.4413,3165.6,3163.7,2.3189]
[1720707462198,3.15957,3165.0,3163.7,2.3189]
[1720707462394,3.1603,3164.3,3163.7,2.3189]
[1720707462599,3.16016,3164.4,3163.7,2.3189]
[1720707462945,0.69633,3165.5,3163.1,3.22790067]
[1720707462946,3.16087,3163.7,3163.1,2.38536067]
[1720707463089,3.16124,3163.4,3163.1,0.06646067]
[1720707463429,0.316,3163.9,3163.1,0.06646067]
[1720707463430,3.16105,3163.5,3163.1,0.06646067]
[1720707464190,0.316105,3163.5,3163.1,0.06646067]
[1720707464455,6.3227,3163.2,3163.1,0.06646067]
[1720707465105,6.3227,3163.2,3163.1,0.04755926]
[1720707465106,9.80005,3163.2,3163.1,0.04755926]
[1720707465502,6.6387,3163.2,3163.1,0.04755926]
[1720707465716,3.16122,3163.4,3163.1,0.04755926]
[1720707465929,3.16074,3163.9,3163.1,0.04755926]
[1720707466093,6.3227,3163.2,3163.1,0.04755926]
[1720707466294,6.3227,3163.2,3161.7,0.0008122]
[1720707466295,3.16225,3162.4,3161.7,0.0008122]
[1720707466608,3.16225,3162.3,3161.7,0.0008122]
[1720707467428,3.16126,3163.3,3161.7,0.0008122]
[1720707467429,3.16201,3162.6,3161.7,0.0008122]
[1720707467788,3.16161,3163.0,3161.9,3.16264]
[1720707467993,3.16236,3162.2,3161.7,0.0008122]
[1720707468237,3.16251,3162.1,3161.7,0.0008122]
[1720707468439,3.16257,3162.0,3161.7,0.0008122]
[1720707468596,3.16165,3162.9,3161.7,0.0008122]
[1720707468597,6.3255,3161.8,3161.7,0.0008122]
[1720707468807,3.16275,3161.8,3161.7,0.0008122]
[1720707468995,3.16165,3162.9,3161.7,0.0008122]
[1720707468996,3.16116,3163.4,3161.7,0.0008122]
[1720707469332,2.454,3163.6,3161.7,0.0008122]
[1720707469333,3.16243,3162.2,3161.7,0.0008122]
[1720707469540,3.1625,3162.1,3161.7,0.0008122]
[1720707469726,4.23939148,3163.2,3161.7,0.0008122]
[1720707469727,3.16275,3161.8,3161.7,0.0008122]
[1720707469891,0.316,3162.4,3161.7,0.0008122]
[1720707470093,3.47824,3162.4,3161.7,0.0008122]
[1720707470330,3.16237,3162.2,3161.7,0.0008122]
[1720707470534,3.16248,3162.1,3161.7,0.0008122]
[1720707470693,3.16275,3161.8,3161.7,0.0008122]
[1720707470894,3.16255,3162.1,3161.7,0.0008122]
[1720707471095,3.16227,3162.3,3161.7,0.0008122]
[1720707471316,3.16239,3162.2,3161.7,0.0008122]
[1720707472189,3.16275,3161.8,3161.7,0.0008122]
[1720707472597,6.3255,3161.8,3161.7,0.0008122]
[1720707472795,9.48825,3161.8,3161.7,0.0008122]
[1720707473237,3.16275,3161.8,3161.7,0.0008122]
[1720707473612,0.664057,3162.2,3161.0,3.16351]
[1720707473613,3.826417,3162.2,3161.0,3.16351]
[1720707473929,3.826417,3162.2,3160.9,0.06326454]
[1720707473930,3.16216,3162.4,3161.2,3.16331]
[1720707474141,3.16216,3162.4,3161.3,3.16324]
[1720707474292,3.16246,3162.1,3161.1,5.81533745]
[1720707474500,3.16256,3162.0,3161.1,2.65197745]
[1720707475007,3.16256,3162.0,3161.1,5.81536745]
[1720707475337,3.16291,3161.7,3160.8,0.0038077]
[1720707475545,0.632497,3162.0,3160.8,0.0038077]
[1720707475703,3.1622259,3161.6,3160.8,0.0038077]
[1720707475903,3.16291,3161.7,3160.8,0.0038077]
[1720707476096,3.16305,3161.6,3160.8,0.0038077]
[1720707476302,3.16324,3161.4,3160.8,0.0038077]
[1720707476555,3.16361,3161.0,3160.8,0.0038077]
[1720707476709,0.316,3161.5,3160.8,0.0038077]
[1720707476907,3.16312,3161.5,3160.8,0.0038077]
[1720707477109,0.316,3161.6,3160.8,0.0038077]
[1720707477337,3.1635,3161.1,3160.8,0.0038077]
[1720707477523,3.16332,3161.3,3160.8,0.0038077]
[1720707477936,0.316,3161.6,3160.8,0.0038077]
[1720707478109,0.52796148,3162.0,3160.8,0.0038077]
[1720707478110,3.16282,3161.8,3160.8,0.0038077]
[1720707478640,3.16278,3161.8,3160.8,0.0038077]
[1720707478839,3.16327,3161.3,3160.8,0.0038077]
[1720707479143,3.16336,3161.2,3160.8,0.0038077]
[1720707479353,3.1631,3161.5,3160.8,0.0038077]
[1720707479659,3.16348,3161.1,3160.8,0.0038077]
[1720707480444,3.16365,3160.9,3160.8,0.0038077]
[1720707480710,6.3273,3160.9,3160.8,0.0038077]
[1720707480936,6.96003,3160.9,3160.8,0.0038077]
[1720707481141,3.79638,3160.9,3160.8,0.0038077]
[1720707481315,3.16315,3161.5,3160.8,0.0038077]
[1720707481316,0.316,3161.4,3160.8,0.0038077]
[1720707481647,3.16349,3161.1,3160.8,0.0038077]
[1720707481870,3.16344,3161.2,3160.8,0.0038077]
[1720707482146,6.3273,3160.9,3160.8,0.0038077]
[1720707482357,17.084542,3160.9,3160.8,7.7e-06]
[1720707482512,6.3291,3160.0,3159.9,0.1156387]
[1720707482713,3.16441,3160.2,3159.9,0.1156387]
[1720707482917,3.16394,3160.7,3160.0,2.459]
[1720707483118,3.16329,3161.3,3160.1,3.22767483]
[1720707483319,3.16329,3161.3,3160.2,3.73299748]
[1720707483320,3.16349,3161.1,3160.2,3.73299748]
[1720707483519,3.16319,3161.4,3160.2,3.73299748]
[1720707483743,3.16319,3161.4,3160.0,5.62352]
[1720707483744,3.16412,3160.5,3160.0,2.459]
[1720707483956,3.022,3161.8,3160.0,5.62346]
[1720707484171,3.16231,3162.3,3160.7,2.4961]
[1720707484334,3.48045,3161.3,3160.7,2.4961]
[1720707484515,3.16285,3161.7,3160.3,5.66033]
[1720707484716,3.16353,3161.1,3160.3,2.4961]
[1720707484914,3.16308,3161.5,3160.4,0.566044]
[1720707485150,3.16303,3161.6,3160.4,0.566044]
[1720707485367,3.16353,3161.1,3160.3,2.4961]
[1720707485531,3.16388,3160.7,3160.3,2.4961]
[1720707485718,3.16388,3160.7,3159.9,0.1156387]
[1720707485719,3.16407,3160.5,3159.9,0.1156387]
[1720707485919,3.16425,3160.3,3159.9,0.1156387]
[1720707486362,3.16424,3160.4,3159.9,0.1156387]
[1720707486586,3.16371,3160.9,3159.9,0.1156387]
[1720707486721,3.16323,3161.4,3160.1,3.16444]
[1720707487072,3.16357,3161.0,3160.0,2.3681]
[1720707487358,2.3099,3162.1,3160.0,2.3681]
[1720707487359,3.16366,3160.9,3160.0,2.3681]
[1720707487557,3.16408,3160.5,3160.0,2.3681]
[1720707488146,3.16446,3160.1,3159.9,0.1156387]
[1720707488353,3.16409,3160.5,3159.9,0.1156387]
[1720707488525,3.16355,3161.1,3159.9,0.1156387]
[1720707488863,3.16446,3160.1,3159.9,0.1156387]
[1720707489063,3.16455,3160.0,3159.9,0.1156387]
[1720707489567,3.16451,3160.1,3159.9,0.1156387]
[1720707489767,0.3172,3160.6,3159.9,0.1156387]
[1720707489768,3.16455,3160.0,3159.9,0.1156387]
[1720707490064,6.3291,3160.0,3159.9,0.1156387]
[1720707490286,10.12656,3160.0,3159.9,0.1156387]
[1720707490432,7.27921,3160.0,3159.9,0.1156387]
[1720707490836,10.44376,3160.0,3159.9,0.1156387]
[1720707491061,6.3291,3160.0,3159.9,0.1156387]
[1720707491494,9.49365,3160.0,3159.9,0.1156387]
[1720707491767,6.3291,3160.0,3159.9,0.1156387]
[1720707491925,9.49365,3160.0,3159.9,0.1156387]
[1720707492125,6.6463,3160.0,3159.9,0.1156387]
[1720707492321,7.31093,3160.0,3159.9,0.1156387]
[1720707493169,10.47548,3160.0,3159.9,0.1156387]
[1720707493331,13.64003,3160.0,3159.9,0.0830212]
[1720707493748,15.97613,3160.0,3159.9,0.0830212]
[1720707493962,17.62230212,3160.0,3159.9,0.0830212]
[1720707494180,16.52613,3160.0,3159.9,0.0830212]
[1720707494380,7.31093,3160.0,3159.9,0.0830212]
[1720707494781,6.99373,3160.0,3159.9,0.0830212]
[1720707494993,0.3172,3160.4,3159.9,0.0830212]
[1720707494994,3.16417,3160.4,3159.9,0.0830212]
[1720707495200,0.00082007,3160.5,3160.0,2.4696]
[1720707495848,0.00082007,3160.5,3160.1,3.22771903]
[1720707496044,0.00082007,3160.5,3160.3,3.16425]
[1720707496271,0.00082007,3160.5,3160.4,0.316425]
[1720707496454,0.00082007,3160.5,3160.0,2.4696]
[1720707496804,3.16416,3160.4,3160.0,2.4696]
[1720707496947,3.16453,3160.1,3159.9,0.0830212]
[1720707497147,9.81085,3160.0,3159.9,0.0830212]
[1720707497446,2.2594,3160.1,3158.7,2.3315]
[1720707497447,3.16524,3159.4,3158.7,2.3315]
[1720707497645,3.16546,3159.1,3158.7,2.3315]
[1720707497962,3.16495,3159.6,3158.7,2.3315]
[1720707498283,0.3172,3159.7,3158.7,2.3315]
[1720707498596,3.16572,3158.9,3158.7,2.3315]
[1720707498747,3.16572,3158.9,3157.5,3.16705]
[1720707498748,3.16572,3158.9,3158.0,2.3152]
[1720707498950,3.16572,3158.9,3158.0,5.48175]
[1720707499163,3.16566,3158.9,3158.0,2.3152]
[1720707499366,3.16501,3159.6,3158.0,2.3152]
[1720707499367,3.16596,3158.6,3158.0,2.3152]
[1720707499567,3.16576,3158.8,3158.0,2.3152]
[1720707499861,3.16576,3158.8,3158.0,2.54672]
[1720707500079,3.16603,3158.6,3158.0,2.3152]
[1720707500290,3.16523,3159.4,3157.5,2.2538]
[1720707500291,0.3172,3158.9,3157.5,2.2538]
[1720707500500,3.16579,3158.8,3157.5,2.2538]
[1720707500756,3.9056,3159.9,3157.5,2.2538]
[1720707500757,3.16613,3158.5,3157.5,2.58165006]
[1720707500991,3.1651,3159.5,3157.5,2.58165006]
[1720707500992,3.16566,3158.9,3157.7,3.16679]
[1720707501199,3.16576,3158.8,3157.6,0.40916501]
[1720707501356,3.16576,3158.8,3157.7,3.16683]
[1720707501559,0.316576,3158.7,3157.7,3.16683]
[1720707501784,3.48295,3158.9,3157.9,3.16665]
[1720707502258,0.3172,3158.9,3157.7,3.16683]
[1720707502460,3.16615,3158.5,3157.5,0.32785006]
[1720707502660,3.16676,3157.8,3157.2,0.005]
[1720707502869,0.3172,3158.1,3157.2,0.005]
[1720707503161,3.16711,3157.5,3157.2,0.005]
[1720707503362,3.16667,3157.9,3157.2,0.005]
[1720707503579,3.16718,3157.4,3157.2,0.005]
[1720707503876,3.16702,3157.6,3157.2,0.005]
[1720707504200,3.16702,3157.6,3156.2,2.41585504]
[1720707504201,2.3003,3157.7,3155.3,0.275]
[1720707504372,0.348361,3158.0,3155.3,0.275]
[1720707504373,3.022,3156.4,3155.3,0.275]
[1720707504559,3.16856,3156.0,3155.3,0.275]
[1720707504759,3.16827,3156.3,3155.3,0.275]
[1720707504959,3.48528,3156.5,3155.4,0.06337683]
[1720707505199,0.06335129,3156.4,3155.3,0.275]
[1720707505363,0.06335129,3156.9,3155.3,0.619446]
[1720707505564,3.16778,3156.8,3155.3,0.275]
[1720707505801,0.06335129,3156.9,3155.4,3.1691]
[1720707505802,3.16794,3156.7,3155.4,3.1691]
[1720707506111,0.06335129,3156.7,3155.5,3.16905]
[1720707506313,0.06335129,3156.6,3155.3,0.275]
[1720707506480,3.16859,3156.0,3155.3,0.275]
[1720707506679,3.16868,3155.9,3155.3,0.275]
[1720707506878,3.16892,3155.7,3155.3,0.275]
[1720707507082,3.16914,3155.5,3155.3,0.275]
[1720707507463,3.54943529,3155.4,3155.3,0.275]
[1720707507666,3.16917,3155.4,3155.3,0.275]
[1720707507864,3.16898,3155.6,3155.3,0.275]
[1720707508114,0.3172,3155.7,3155.3,0.275]
[1720707508291,0.06335129,3156.7,3155.3,0.275]
[1720707508494,0.56278681,3157.4,3155.3,0.275]
[1720707508794,3.16799,3156.6,3155.4,2.3721]
[1720707509309,3.16767,3156.9,3155.5,0.06336738]
[1720707509520,3.16777,3156.8,3155.6,0.06336537]
[1720707509819,3.16777,3156.8,3155.7,0.0633631]
[1720707510105,3.16708,3157.5,3156.3,2.4014]
[1720707510291,0.3172,3157.3,3156.4,0.6203255]
[1720707510507,0.3172,3157.3,3156.5,3.23139145]
[1720707510680,0.3172,3157.3,3156.6,3.16795]
[1720707510882,0.3172,3157.3,3156.5,0.06335145]
[1720707510883,0.3172,3157.3,3156.5,0.06334668]
[1720707511107,0.3172,3157.3,3156.7,0.06334668]
[1720707511265,0.3172,3157.3,3156.8,2.4859]
[1720707511471,0.3172,3157.3,3156.9,0.565371]
[1720707512207,0.15896061,3159.5,3157.7,2.3298]
[1720707512415,0.00082007,3160.5,3157.7,2.3298]
[1720707512416,3.16465,3159.9,3157.8,0.06330336]
[1720707512722,3.16465,3159.9,3157.7,3.8398]
[1720707512723,3.16589,3158.7,3157.9,0.39031034]
[1720707513013,3.16502,3159.6,3157.7,2.3298]
[1720707513014,3.16616,3158.4,3157.7,2.3298]
[1720707513313,3.1658,3158.8,3157.7,2.3298]
[1720707513464,0.316465,3159.8,3157.7,2.3298]
[1720707513465,3.16587,3158.7,3157.7,2.3298]
[1720707513667,3.1657,3158.9,3157.7,2.3298]
[1720707513981,3.16635,3158.3,3157.7,2.3298]
[1720707514183,0.38625642,3158.9,3157.7,2.3298]
[1720707514184,0.3172,3158.8,3157.7,2.3298]
[1720707514382,3.16616,3158.4,3157.7,2.3298]
[1720707514582,3.48304,3158.8,3157.7,2.3298]
[1720707514785,3.48304,3158.8,3157.7,5.49664]
[1720707515107,3.48304,3158.8,3157.7,2.3298]
[1720707515108,0.3172,3158.8,3157.7,2.3298]
[1720707515294,3.16646,3158.1,3157.7,2.3298]
[1720707515524,3.22981129,3158.1,3157.1,3.16]
[1720707515807,3.16521,3159.4,3157.1,3.16]
[1720707515808,0.64206971,3160.4,3157.7,3.16676]
[1720707515979,0.06335129,3159.7,3158.5,3.16]
[1720707516183,3.16463,3160.0,3158.6,2.2834]
[1720707516509,3.16463,3160.0,3158.6,5.44927]
[1720707516713,3.16463,3160.0,3158.8,3.16574]
[1720707517026,0.3172,3159.8,3158.6,2.2834]
[1720707517171,3.16522,3159.4,3158.6,2.2834]
[1720707517372,3.16558,3159.0,3158.6,2.2834]
[1720707517596,3.16544,3159.2,3158.6,2.28258604]
[1720707517804,3.22882129,3159.1,3158.2,1.29]
[1720707518005,3.16579,3158.8,3157.7,3.16684]
[1720707518219,3.22914129,3158.8,3157.9,3.16665]
[1720707518511,0.35460213,3159.0,3157.8,3.16667]
[1720707518715,0.06335129,3158.9,3157.2,4.45]
[1720707518920,0.3172,3159.2,3157.2,4.45]
[1720707519219,3.16685,3157.8,3157.2,1.29]
[1720707519515,3.16729,3157.3,3156.1,3.16843]
[1720707519805,1.559e-05,3157.1,3156.2,0.316843]
[1720707520011,1.559e-05,3157.1,3156.7,3.16779]
[1720707520195,1.559e-05,3157.1,3156.4,3.16816]
[1720707520196,1.559e-05,3157.1,3156.4,3.022]
[1720707520422,1.559e-05,3157.1,3156.2,0.316843]
[1720707520714,1.559e-05,3157.1,3156.5,3.168]
[1720707520916,1.559e-05,3157.1,3156.6,0.3168]
[1720707521083,1.559e-05,3157.1,3157.0,3.16756]
[1720707521284,1.559e-05,3157.1,3157.0,8.79092]
[1720707521484,1.559e-05,3157.1,3157.0,2.4558]
[1720707521691,1.559e-05,3157.1,3157.0,2.45497092]
[1720707521891,3.1668,3157.8,3157.0,2.70046801]
[1720707522322,3.16665,3158.0,3157.0,2.70046801]
[1720707522528,3.16665,3158.0,3157.1,0.2700468]
[1720707522680,3.16665,3158.0,3157.0,2.45497092]
[1720707522681,3.16682,3157.8,3157.0,2.45497092]
[1720707522881,0.38055129,3158.3,3157.0,2.45497092]
[1720707522882,0.3172,3158.3,3157.0,2.45497092]
[1720707523095,0.3172,3158.3,3157.1,3.16746]
[1720707523096,3.16646,3158.2,3157.1,3.16746]
[1720707523325,0.3172,3158.3,3157.1,3.16746]
[1720707523479,3.48348,3158.3,3157.1,0.87900609]
[1720707523678,3.16642,3158.2,3157.1,4.04564077]
[1720707523883,0.3172,3158.3,3157.1,4.04564077]
[1720707523884,0.31554982,3158.3,3157.4,3.16708]
[1720707524104,0.31554982,3158.3,3157.5,0.06333466]
[1720707524319,0.31554982,3158.3,3157.3,3.23059463]
[1720707524320,3.48182982,3158.3,3157.3,3.23059463]
[1720707524649,3.48182982,3158.3,3156.3,3.16826]
[1720707524650,3.16725,3157.4,3156.3,3.16826]
[1720707524813,0.06335129,3157.3,3156.2,2.608443]
[1720707525008,3.16747,3157.1,3156.2,2.608443]
[1720707525390,0.64400981,3158.6,3156.3,0.06335915]
[1720707525625,0.06335129,3158.6,3156.4,0.2663648]
[1720707525830,3.16627,3158.3,3156.9,3.16765]
[1720707526134,3.16666,3157.9,3157.2,2.47142798]
[1720707526346,3.16672,3157.9,3157.2,2.47142798]
[1720707526521,0.34397147,3158.7,3157.2,2.71857078]
[1720707526692,0.06335129,3159.1,3157.3,3.16724]
[1720707527026,0.06335129,3159.1,3157.2,2.71857078]
[1720707527027,3.16678,3157.8,3157.2,2.71857078]
[1720707527196,3.16675,3157.9,3157.2,2.71857078]
[1720707527389,3.16692,3157.7,3157.2,2.71857078]
[1720707527728,3.4837,3158.1,3157.2,2.71774087]
[1720707527969,0.3172,3158.1,3157.2,2.71774087]
[1720707528096,0.3172,3158.1,3157.2,2.47059807]
[1720707528097,3.16699,3157.6,3157.2,2.47059807]
[1720707528449,3.23034129,3157.6,3157.2,2.47059807]
[1720707528595,3.16698,3157.6,3156.4,0.2663648]
[1720707528799,3.16713,3157.5,3156.5,3.168]
[1720707529104,3.48412,3157.7,3156.6,0.66024448]
[1720707529311,0.3172,3157.7,3156.8,3.1677]
[1720707529549,4.13151472,3159.1,3157.1,3.16]
[1720707529550,3.16676,3157.8,3157.1,3.16]
[1720707529752,3.16699,3157.6,3157.1,3.15917682]
[1720707530037,3.16676,3157.8,3156.6,0.66024448]
[1720707530038,3.16736,3157.2,3156.6,0.66024448]
[1720707530199,3.16677,3157.8,3156.2,3.485183]
[1720707530200,3.23085129,3157.1,3156.2,3.485183]
[1720707530543,3.16778,3156.8,3156.2,0.316843]
[1720707531053,3.16787,3156.7,3156.2,0.316843]
[1720707531213,3.16825,3156.4,3156.0,6.9257]
[1720707531399,3.16837,3156.2,3156.0,5.6357]
[1720707531601,3.16837,3156.2,3156.0,3.16]
[1720707531602,3.16846,3156.1,3156.0,3.16]
[1720707531801,3.16837,3156.2,3155.7,0.00081315]
[1720707532001,3.16846,3156.1,3155.7,0.00081315]
[1720707532308,3.81114981,3157.5,3155.7,0.00081315]
[1720707532309,3.1682,3156.4,3155.7,0.00081315]
[1720707532495,3.16848,3156.1,3155.7,0.00081315]
[1720707532700,3.16842,3156.2,3155.7,0.00081315]
[1720707532701,3.23198129,3156.0,3155.7,0.00081315]
[1720707533000,6.33752,3155.8,3155.7,0.00081315]
[1720707533821,3.16876,3155.8,3155.7,0.00081315]
[1720707534019,3.16859,3156.0,3155.7,0.00081315]
[1720707534723,3.16807,3156.5,3155.7,0.00081315]
[1720707535051,3.16843,3156.2,3155.7,0.00081315]
[1720707535343,3.16848,3156.1,3155.7,0.00081315]
[1720707535552,3.16858,3156.0,3155.7,0.00081315]
[1720707535716,3.16848,3156.1,3155.7,0.00081315]
[1720707535717,3.16868,3155.9,3155.7,0.00081315]
[1720707535923,3.16876,3155.8,3155.7,0.00081315]
[1720707536318,6.33752,3155.8,3155.7,0.00081315]
[1720707536526,6.97760713,3155.8,3155.7,0.00081315]
[1720707537548,6.33752,3155.8,3155.7,0.00081315]
[1720707537956,9.56963129,3155.8,3154.8,0.35648304]
[1720707538252,9.56963129,3155.8,3154.8,0.31509619]
[1720707538253,9.82621,3154.9,3154.8,0.31509619]
[1720707538546,9.82621,3154.9,3153.5,2.5414387]
[1720707538547,0.3172,3154.7,3153.5,2.5414387]
[1720707538751,3.17059,3154.0,3153.5,2.5414387]
[1720707538953,3.17084,3153.8,3153.5,0.1156387]
[1720707539109,3.17064,3154.0,3153.5,0.1156387]
[1720707539310,3.17085,3153.8,3153.5,0.1156387]
[1720707539533,0.3172,3154.1,3153.5,0.1156387]
[1720707539735,3.17097,3153.6,3153.5,0.1156387]
[1720707539953,6.65914,3153.6,3153.5,0.1156387]
[1720707540158,6.65831625,3153.6,3153.5,0.1156387]
[1720707540357,3.17002,3154.6,3153.5,0.1156387]
[1720707540657,3.17039,3154.2,3153.5,0.1156387]
[1720707540867,3.81473933,3155.7,3153.5,0.1156387]
[1720707540868,3.17097,3153.6,3153.5,0.1156387]
[1720707541156,6.34194,3153.6,3153.5,0.1156387]
[1720707541326,9.89346129,3153.6,3153.5,0.1156387]
[1720707542013,0.64488181,3154.5,3153.5,0.1156387]
[1720707542209,3.17037,3154.2,3153.5,0.1156387]
[1720707542409,0.16122045,3154.5,3153.5,0.1156387]
[1720707542410,3.17095,3153.7,3153.5,0.1156387]
[1720707542673,3.16981,3154.8,3153.5,0.1156387]
[1720707542954,3.16977,3154.8,3153.6,2.4267]
[1720707543110,3.16929,3155.3,3154.1,3.17047]
[1720707543310,3.16873,3155.9,3153.6,2.4974]
[1720707543311,3.17007,3154.6,3153.6,2.4974]
[1720707543612,0.47127403,3155.9,3153.9,3.17067]
[1720707543613,0.06335129,3155.7,3153.9,3.17067]
[1720707543859,3.64025403,3155.6,3154.1,3.17039]
[1720707544150,3.64025403,3155.6,3154.0,0.317067]
[1720707544151,3.1692,3155.4,3154.4,3.17015]
[1720707544372,3.16867,3155.9,3154.7,3.16986]
[1720707544512,3.16932,3155.3,3154.6,2.4323]
[1720707544710,3.16905,3155.6,3154.6,2.4323]
[1720707544951,3.16905,3155.6,3153.5,0.1156387]
[1720707544952,0.316905,3155.5,3153.8,2.4309]
[1720707545166,3.17025,3154.4,3153.8,2.4309]
[1720707545325,3.17067,3153.9,3153.8,2.4309]
[1720707545514,3.17067,3154.0,3153.8,2.4309]
[1720707545863,3.16993,3154.7,3153.8,2.4309]
[1720707545864,3.17028,3154.3,3153.8,2.4309]
[1720707546031,3.17045,3154.2,3153.8,2.4309]
[1720707546210,3.17075,3153.9,3153.5,0.1156387]
[1720707546416,3.17033,3154.3,3153.5,0.1156387]
[1720707546611,3.17,3154.6,3153.5,0.1156387]
[1720707546925,3.17017,3154.4,3153.6,0.32868087]
[1720707547124,3.16987,3154.7,3153.6,0.32868087]
[1720707547325,3.16958,3155.0,3153.6,0.06340395]
[1720707547528,0.64488181,3156.5,3154.3,3.17022]
[1720707547747,0.96732271,3156.7,3154.8,3.16976]
[1720707547748,3.16884,3155.8,3154.8,3.16976]
[1720707547963,3.16887,3155.7,3154.7,3.16984]
[1720707548254,3.16874,3155.9,3154.8,0.06338523]
[1720707548465,3.16817,3156.4,3154.8,0.38671975]
[1720707548667,3.16778,3156.8,3155.6,2.3102]
[1720707548817,2.252,3157.6,3155.6,2.3102]
[1720707548818,3.16839,3156.2,3155.6,2.3102]
[1720707549330,3.16814,3156.5,3155.6,2.3102]
[1720707549546,3.16788,3156.7,3155.6,5.54252438]
[1720707549840,3.16806,3156.5,3155.6,5.47915]
[1720707550008,3.16788,3156.7,3155.7,3.716745]
[1720707550209,3.16776,3156.8,3155.7,3.716745]
[1720707550462,3.16753,3157.1,3155.9,3.16863]
[1720707550626,3.16777,3156.8,3155.9,3.16863]